bitfinex/quotes_SOLUSD_20250522
["timestamp","ask_amount","ask_price","bid_price","bid_amount"]
[1747954420742,19.65629562,178.06,177.98,0.14216157]
[1747954422147,19.65629562,178.06,177.97,18.64964886]
[1747954422148,28.79690555,178.06,177.97,18.64964886]
[1747954422926,9.14060993,178.05,177.97,18.64964886]
[1747954424426,9.14060993,178.04,177.96,1.5189]
[1747954424841,19.66071227,178.02,177.96,1.5189]
[1747954426036,14.04336591,178.02,177.96,1.5189]
[1747954433758,19.66071227,178.02,177.96,1.5189]
[1747954435561,28.8013222,178.02,177.96,1.5189]
[1747954435759,28.5106222,178.02,177.96,1.5189]
[1747954439345,9.14060993,178.01,177.9,37.0567]
[1747954439663,9.14060993,178.0,177.92,0.14216157]
[1747954440038,19.66402606,177.99,177.92,0.14216157]
[1747954441478,14.0457329,177.99,177.92,0.14216157]
[1747954446271,23.18634283,177.99,177.91,18.64964886]
[1747954446982,23.18634283,177.99,177.9,37.0567]
[1747954447184,14.0457329,177.99,177.9,37.0567]
[1747954447393,28.08673182,178.02,177.91,18.64964886]
[1747954447563,9.14060993,178.01,177.91,18.64964886]
[1747954447765,37.22734175,178.02,177.92,0.14216157]
[1747954448092,28.80021785,178.03,177.92,0.28432314]
[1747954448766,9.14060993,178.02,177.92,0.28432314]
[1747954449080,19.66181674,178.01,177.92,0.28432314]
[1747954450985,19.66181674,178.01,177.92,0.14216157]
[1747954454876,28.80242667,178.01,177.91,18.64964886]
[1747954456702,28.77697881,178.01,177.91,18.64964886]
[1747954457688,19.63636888,178.01,177.91,18.64964886]
[1747954464503,28.77697881,178.01,177.91,18.64964886]
[1747954466112,19.63636888,178.01,177.91,18.64964886]
[1747954466500,28.77697881,178.01,177.91,18.64964886]
[1747954468902,56.86528845,178.01,177.91,18.64964886]
[1747954469102,136.0,178.0,177.91,18.64964886]
[1747954469305,145.14060993,178.0,177.91,18.64964886]
[1747954469893,47.75549187,177.99,177.91,18.64964886]
[1747954471708,47.75549187,177.99,177.9,71.39003333]
[1747954471894,47.75549187,177.99,177.9,45.39003333]
[1747954473506,90.5761018,177.99,177.9,45.39003333]
[1747954473709,81.43549187,177.99,177.9,45.39003333]
[1747954475607,19.66623587,177.97,177.9,43.73333333]
[1747954475795,47.76085855,177.97,177.9,43.73333333]
[1747954476107,47.76085855,177.97,177.9,8.33333333]
[1747954479606,47.76085855,177.97,177.92,0.14216157]
[1747954479607,5.61892453,177.97,177.92,0.14216157]
[1747954479997,5.61829316,177.99,177.92,0.14216157]
[1747954480298,5.61829316,177.99,177.94,0.14216157]
[1747954480699,5.61734636,178.02,177.94,0.28432314]
[1747954481810,5.61734636,178.02,177.95,18.64964886]
[1747954482910,19.65629562,178.06,177.95,18.64964886]
[1747954483608,19.65629562,178.06,177.96,18.933972]
[1747954483808,19.65629562,178.06,177.98,18.79181043]
[1747954484913,19.65298444,178.09,177.98,18.79181043]
[1747954485117,33.9558689,178.09,177.98,18.79181043]
[1747954488813,19.65519176,178.07,177.98,18.79181043]
[1747954492004,5.61576907,178.07,177.99,0.14216157]
[1747954492716,19.65431637,178.08,177.99,0.14216157]
[1747954495419,19.65431637,178.08,178.0,18.64964886]
[1747954495621,19.65431637,178.08,178.01,0.14216157]
[1747954500218,19.65431637,178.08,177.99,0.28432314]
[1747954500508,19.65431637,178.08,178.01,0.14216157]
[1747954503742,19.65431637,178.08,177.99,0.28432314]
[1747954504318,19.65431637,178.08,177.99,0.14216157]
[1747954505521,28.80540557,178.08,177.99,0.14216157]
[1747954508234,9.1510892,178.06,177.98,18.64964886]
[1747954508813,19.65739959,178.05,177.98,18.64964886]
[1747954509015,28.80848879,178.05,177.97,35.58]
[1747954509342,9.1510892,178.04,177.96,18.64964886]
[1747954509720,14.30833105,178.04,177.96,18.64964886]
[1747954510424,47.73939902,178.05,177.96,18.64964886]
[1747954510630,62.04773007,178.05,177.96,18.64964886]
[1747954512247,19.65739959,178.05,177.96,18.64964886]
[1747954512435,19.65739959,178.05,177.97,0.14216157]
[1747954513154,19.65408804,178.08,177.98,44.64964886]
[1747954513541,19.65408804,178.08,177.99,1.88532314]
[1747954513715,5.61545372,178.08,178.01,0.28432314]
[1747954514825,19.65188096,178.1,178.04,18.64964886]
[1747954515548,5.61482313,178.1,178.05,0.14216157]
[1747954516820,19.64900398,178.13,178.05,0.14216157]
[1747954522622,33.95733503,178.13,178.05,0.14216157]
[1747954524637,19.64900398,178.13,178.05,0.14216157]
[1747954525135,33.95733503,178.13,178.05,0.14216157]
[1747954528847,19.64900398,178.13,178.05,0.14216157]
[1747954534459,19.64900398,178.13,178.05,0.28432314]
[1747954535932,19.64900398,178.13,178.05,0.14216157]
[1747954545559,28.79563016,178.13,178.05,0.14216157]
[1747954545955,9.14662618,178.12,178.04,18.64964886]
[1747954547233,19.65188096,178.1,178.04,18.64964886]
[1747954549562,9.14662618,178.1,178.03,61.44]
[1747954549950,9.14662618,178.1,178.03,26.0]
[1747954550575,9.14662618,178.1,178.02,0.14216157]
[1747954551784,19.65298444,178.09,178.02,0.14216157]
[1747954553273,28.79961062,178.09,178.02,18.64964886]
[1747954553482,58.39080268,178.09,178.0,0.14216157]
[1747954553647,58.39080268,178.09,178.0,18.79181043]
[1747954554471,21.16848444,178.09,178.01,0.14216157]
[1747954555452,30.31511062,178.09,178.01,0.14216157]
[1747954560469,19.65298444,178.09,178.01,0.28432314]
[1747954560670,5.61513841,178.09,178.03,0.28432314]
[1747954561574,5.61482313,178.1,178.03,0.28432314]
[1747954561771,5.61482313,178.1,178.04,0.14216157]
[1747954562153,5.61356236,178.14,178.05,1.6525]
[1747954562355,5.61356236,178.14,178.06,18.79181043]
[1747954562674,19.64746827,178.14,178.06,18.79181043]
[1747954563250,28.79409445,178.14,178.06,18.79181043]
[1747954563655,9.14662618,178.13,178.06,18.79181043]
[1747954564057,28.79409445,178.14,178.06,18.79181043]
[1747954564255,19.64746827,178.14,178.06,18.79181043]
[1747954564459,28.79409445,178.14,178.06,18.79181043]
[1747954575189,19.64967436,178.12,178.06,18.79181043]
[1747954578295,19.64967436,178.12,178.06,18.64964886]
[1747954579775,9.14662618,178.11,178.04,18.64964886]
[1747954580075,9.14662618,178.1,178.04,18.64964886]
[1747954580793,9.14662618,178.1,178.0,18.64964886]
[1747954580998,26.0,178.07,178.0,18.64964886]
[1747954581203,26.0,178.07,178.01,0.14216157]
[1747954581681,35.14662618,178.09,178.01,0.14216157]
[1747954582001,19.65408804,178.08,178.01,0.14216157]
[1747954582385,28.80071422,178.08,178.0,18.64964886]
[1747954582807,9.14662618,178.07,178.0,18.64964886]
[1747954584087,19.65629562,178.06,177.99,18.64964886]
[1747954586303,19.65629562,178.06,177.98,0.14216157]
[1747954586304,26.19129562,178.06,177.98,0.14216157]
[1747954586483,35.3379218,178.06,177.98,0.14216157]
[1747954587106,26.19129562,178.06,177.98,0.14216157]
[1747954587307,19.65629562,178.06,177.98,0.28432314]
[1747954587603,5.61608446,178.06,177.99,18.64964886]
[1747954587979,5.61608446,178.06,178.0,0.28432314]
[1747954589193,5.61545372,178.08,178.0,0.28432314]
[1747954589595,19.65408804,178.08,178.0,0.14216157]
[1747954591088,28.80071422,178.08,178.0,0.14216157]
[1747954591781,9.14662618,178.07,177.98,0.14216157]
[1747954592103,9.14662618,178.07,177.98,0.28432314]
[1747954592511,28.80071422,178.08,177.98,0.28432314]
[1747954593716,33.95580541,178.08,177.98,0.28432314]
[1747954594008,33.95580541,178.08,178.0,0.14216157]
[1747954594909,14.30171737,178.07,177.98,0.14216157]
[1747954595687,169.95580541,178.08,177.98,0.14216157]
[1747954598112,14.30171737,178.07,177.98,0.14216157]
[1747954598599,169.95580541,178.08,177.98,0.14216157]
[1747954603322,169.95580541,178.08,177.99,18.64964886]
[1747954603529,155.65408804,178.08,178.0,0.14216157]
[1747954605518,155.65408804,178.08,178.01,18.79181043]
[1747954606511,155.65408804,178.08,178.01,0.14216157]
[1747954609337,155.65408804,178.08,178.01,18.64964886]
[1747954612605,141.61545372,178.08,178.02,0.14216157]
[1747954613005,141.61545372,178.08,178.03,18.64964886]
[1747954613223,5.61545372,178.08,178.03,18.64964886]
[1747954613422,5.61545372,178.08,178.04,0.14216157]
[1747954614926,5.61513841,178.09,178.04,0.14216157]
[1747954621334,19.65298444,178.09,178.04,0.14216157]
[1747954622131,19.65298444,178.09,178.03,0.14216157]
[1747954626877,26.0,178.08,178.01,35.48]
[1747954627026,9.1498057,178.07,178.01,35.48]
[1747954627346,35.1498057,178.08,178.01,35.48]
[1747954627559,19.65519176,178.07,178.01,35.48]
[1747954627846,19.65519176,178.07,177.99,18.79181043]
[1747954628480,19.65519176,178.07,177.98,0.28432314]
[1747954636989,14.03942269,178.07,177.98,0.28432314]
[1747954639288,14.03942269,178.07,178.0,0.14216157]
[1747954657168,19.65519176,178.07,178.0,0.14216157]
[1747954657372,28.80499746,178.07,177.99,0.14216157]
[1747954658177,19.65519176,178.07,177.99,0.14216157]
[1747954658767,9.1498057,178.06,177.98,18.64964886]
[1747954659187,56.88384285,178.07,177.98,18.64964886]
[1747954660395,56.88384285,178.07,177.98,0.14216157]
[1747954665116,9.1498057,178.06,177.98,0.14216157]
[1747954665605,56.88384285,178.07,177.98,0.14216157]
[1747954671807,9.1498057,178.06,177.98,0.14216157]
[1747954672315,47.73403715,178.07,177.98,0.14216157]
[1747954672501,9.1498057,178.06,177.98,0.14216157]
[1747954673005,43.3116057,178.06,177.95,10.23747269]
[1747954673302,9.1498057,178.05,177.97,0.14216157]
[1747954673507,19.6585037,178.04,177.96,18.64964886]
[1747954678201,19.6585037,178.04,177.97,0.14216157]
[1747954680104,14.04178836,178.04,177.97,0.14216157]
[1747954680492,5.61639988,178.05,177.99,0.14216157]
[1747954680896,5.61639988,178.05,178.02,0.14216157]
[1747954681687,5.61545372,178.08,178.02,0.14216157]
[1747954681887,45.65408804,178.08,178.02,0.14216157]
[1747954684997,19.65408804,178.08,178.02,0.14216157]
[1747954685713,28.80389374,178.08,178.01,18.64964886]
[1747954685898,9.1498057,178.07,178.01,18.64964886]
[1747954686097,28.80389374,178.08,178.01,18.64964886]
[1747954690208,28.80389374,178.08,178.0,35.34]
[1747954690209,9.1498057,178.07,178.0,35.34]
[1747954690524,56.88116238,178.08,178.0,35.34]
[1747954690923,9.1498057,178.05,177.98,26.0]
[1747954691706,9.1498057,178.06,177.98,26.0]
[1747954692405,19.65739959,178.05,177.98,26.0]
[1747954692806,19.65739959,178.05,177.96,18.64964886]
[1747954693005,19.65739959,178.05,177.97,0.14216157]
[1747954695029,56.88920472,178.05,177.97,0.14216157]
[1747954699630,56.88920472,178.05,177.96,44.64964886]
[1747954700131,56.88920472,178.05,177.96,18.64964886]
[1747954701638,9.1498057,178.02,177.96,18.64964886]
[1747954702309,9.1498057,178.03,177.96,18.64964886]
[1747954702512,19.66071227,178.02,177.96,18.64964886]
[1747954706432,47.73939902,178.05,177.96,18.64964886]
[1747954706964,9.1498057,178.03,177.96,18.64964886]
[1747954708636,19.66071227,178.02,177.96,18.64964886]
[1747954710039,19.66071227,178.02,177.95,0.14216157]
[1747954711344,19.66071227,178.02,177.94,18.50799482]
[1747954715228,28.81051797,178.02,177.94,18.50799482]
[1747954716144,9.1498057,178.0,177.93,18.64964886]
[1747954718146,19.66402606,177.99,177.93,18.64964886]
[1747954720721,19.66402606,177.99,177.92,35.32]
[1747954726049,5.61829316,177.99,177.93,18.64964886]
[1747954727352,5.61797752,178.0,177.93,18.64964886]
[1747954729436,5.61797752,178.0,177.93,24.26980313]
[1747954729642,5.61797752,178.0,177.94,0.14216157]
[1747954733458,14.04400422,178.02,177.94,0.14216157]
[1747954737352,19.66135058,178.02,177.94,0.14216157]
[1747954739961,5.61734636,178.02,177.96,0.14216157]
[1747954740151,5.61734636,178.02,177.96,0.28432314]
[1747954740342,5.61671534,178.04,177.98,0.14216157]
[1747954740949,5.61671534,178.04,177.98,0.28432314]
[1747954741367,19.65519176,178.07,177.98,0.28432314]
[1747954741962,28.80499746,178.07,177.98,0.28432314]
[1747954748275,28.80499746,178.07,177.98,0.14216157]
[1747954748464,9.1498057,178.06,177.98,0.14216157]
[1747954748971,19.65519176,178.07,177.98,0.14216157]
[1747954749662,28.80499746,178.07,177.98,0.14216157]
[1747954751071,19.65739959,178.05,177.98,0.14216157]
[1747954754674,19.65739959,178.05,177.97,44.64964886]
[1747954754868,28.80720529,178.05,177.97,44.64964886]
[1747954755074,9.1498057,178.04,177.97,44.64964886]
[1747954755469,9.1498057,178.03,177.97,44.64964886]
[1747954756286,5.61734636,178.02,177.97,44.64964886]
[1747954757095,19.66071227,178.02,177.97,44.64964886]
[1747954758384,14.04336591,178.02,177.97,44.64964886]
[1747954763391,14.04336591,178.02,177.93,0.14216157]
[1747954763578,14.04336591,178.02,177.96,18.64964886]
[1747954764590,19.66071227,178.02,177.96,18.64964886]
[1747954772667,19.66071227,178.02,177.93,44.79181043]
[1747954773773,19.66071227,178.02,177.93,50.41194527]
[1747954777181,14.04336591,178.02,177.93,50.41194527]
[1747954778397,19.66071227,178.02,177.93,50.41194527]
[1747954785504,26.0,177.99,177.93,18.79181043]
[1747954786909,5.61860883,177.98,177.93,18.79181043]
[1747954789326,19.66071227,178.02,177.93,18.79181043]
[1747954793348,19.66071227,178.02,177.93,24.41191084]
[1747954797057,45.66071227,178.02,177.93,24.41191084]
[1747954797456,19.66071227,178.02,177.93,24.41191084]
[1747954799353,5.61734636,178.02,177.96,0.14216157]
[1747954800052,5.61734636,178.02,177.97,18.64964886]
[1747954800255,5.61671534,178.04,177.98,0.14216157]
[1747954800556,5.61576907,178.07,178.01,18.79181043]
[1747954801544,5.61545372,178.08,178.01,18.79181043]
[1747954802256,19.65408804,178.08,178.01,18.79181043]
[1747954803454,5.61545372,178.08,178.01,18.79181043]
[1747954805862,28.80007102,178.12,178.01,24.40946381]
[1747954806842,9.1498057,178.11,178.01,18.79181043]
[1747954807260,9.1498057,178.11,178.01,24.40943467]
[1747954807764,19.65188096,178.1,178.01,18.79181043]
[1747954807944,19.65188096,178.1,178.01,24.40938174]
[1747954808962,19.65188096,178.1,178.03,18.79181043]
[1747954809664,19.60529306,178.1,178.03,18.79181043]
[1747954809959,5.56823523,178.1,178.07,18.64964886]
[1747954810151,5.61419267,178.12,178.07,18.64964886]
[1747954810558,5.61419267,178.12,178.08,0.14216157]
[1747954811757,19.64768284,178.14,178.08,0.14216157]
[1747954813253,14.03412048,178.14,178.08,0.14216157]
[1747954814778,5.61293219,178.16,178.08,0.14216157]
[1747954815157,19.64526267,178.16,178.08,0.14216157]
[1747954815693,28.79506837,178.16,178.08,0.14216157]
[1747954816062,19.64526267,178.16,178.08,0.14216157]
[1747954816470,19.64526267,178.16,178.1,0.14216157]
[1747954818763,5.61261716,178.17,178.1,5.89906601]
[1747954818976,5.61261716,178.17,178.12,0.14216157]
[1747954820486,14.03057126,178.19,178.12,0.28432314]
[1747954821081,5.61167227,178.2,178.14,0.14216157]
[1747954821990,5.61135738,178.21,178.14,0.14216157]
[1747954824979,5.61135738,178.21,178.16,0.14216157]
[1747954826483,19.63644523,178.24,178.16,0.14216157]
[1747954827387,28.78625093,178.24,178.16,0.14216157]
[1747954827590,9.1498057,178.23,178.16,0.14216157]
[1747954827967,28.78625093,178.24,178.16,0.14216157]
[1747954828581,19.63644523,178.24,178.16,0.14216157]
[1747954828887,28.78625093,178.24,178.16,0.14216157]
[1747954831163,23.17583801,178.24,178.16,0.14216157]
[1747954832591,28.78625093,178.24,178.16,0.14216157]
[1747954833690,19.63644523,178.24,178.16,0.14216157]
[1747954833883,28.78625093,178.24,178.16,0.14216157]
[1747954835588,23.17583801,178.24,178.16,0.14216157]
[1747954836093,14.02603231,178.24,178.16,0.14216157]
[1747954836982,5.61009817,178.25,178.18,0.14216157]
[1747954837696,19.63534361,178.25,178.18,0.14216157]
[1747954840799,19.63534361,178.25,178.19,18.64964886]
[1747954842795,5.61009817,178.25,178.2,0.14216157]
[1747954843000,5.60946878,178.27,178.2,0.28432314]
[1747954843302,5.60946878,178.27,178.22,0.14216157]
[1747954843802,5.60946878,178.27,178.21,18.64964886]
[1747954844185,5.60852495,178.3,178.21,50.26099372]
[1747954844909,5.60852495,178.3,178.21,44.64964886]
[1747954844910,28.77964304,178.3,178.21,44.64964886]
[1747954845402,19.62983734,178.3,178.22,0.14216157]
[1747954847323,19.62983734,178.3,178.23,18.64964886]
[1747954847495,5.60852495,178.3,178.24,0.14216157]
[1747954848516,5.60789591,178.32,178.24,0.14216157]
[1747954849619,33.88833326,178.33,178.24,0.14216157]
[1747954849798,19.62709129,178.33,178.24,0.14216157]
[1747954849999,33.88833326,178.33,178.24,0.14216157]
[1747954850200,14.26124197,178.32,178.24,0.14216157]
[1747954851821,5.60821042,178.31,178.24,0.14216157]
[1747954852818,19.6276357,178.32,178.24,0.14216157]
[1747954857020,14.01973979,178.32,178.24,0.14216157]
[1747954857823,14.01973979,178.32,178.24,18.79181043]
[1747954859601,5.60758145,178.33,178.25,0.14216157]
[1747954859846,5.60758145,178.33,178.28,18.64964886]
[1747954860858,5.60726701,178.34,178.28,18.64964886]
[1747954862040,19.62543455,178.34,178.28,18.64964886]
[1747954864527,5.60726701,178.34,178.28,18.64964886]
[1747954872849,5.60726701,178.34,178.29,0.14216157]
[1747954873255,0.10626052,178.3,178.29,0.28432314]
[1747954873546,0.10626052,178.3,178.29,25.10349816]
[1747954876347,0.10626052,178.3,178.29,19.49465863]
[1747954876548,0.10626052,178.3,178.29,18.79181043]
[1747954876977,0.10626052,178.3,178.29,18.64964886]
[1747954879275,0.10626052,178.3,178.29,18.624201]
[1747954883367,0.10626052,178.3,178.29,18.624201]
[1747954883566,0.10626052,178.3,178.28,18.64964886]
[1747954886264,0.10626052,178.3,178.28,24.25878232]
[1747954886767,0.10626052,178.3,178.28,18.64964886]
[1747954890702,5.71487588,178.3,178.26,35.16]
[1747954892262,5.71487588,178.3,178.26,18.64964886]
[1747954892467,5.60861536,178.3,178.26,18.64964886]
[1747954892785,14.01989775,178.32,178.26,18.64964886]
[1747954893282,0.10332533,178.27,178.26,18.64964886]
[1747954894884,0.10332533,178.27,178.24,18.64964886]
[1747954896296,5.71288829,178.27,178.23,26.0]
[1747954898584,0.10332533,178.27,178.24,18.64964886]
[1747954899694,5.71284099,178.27,178.24,18.64964886]
[1747954899891,0.10332533,178.27,178.24,18.64964886]
[1747954910222,5.71283539,178.27,178.24,18.64964886]
[1747954910389,5.71283539,178.27,178.22,35.12]
[1747954911930,19.73650734,178.27,178.22,35.12]
[1747954912096,5.71283539,178.27,178.22,35.12]
[1747954912296,5.71283539,178.27,178.23,18.64964886]
[1747954912519,5.60951006,178.27,178.23,18.64964886]
[1747954913322,0.10260808,178.24,178.23,18.64964886]
[1747954921808,0.10260808,178.24,178.22,35.12]
[1747954925137,0.10260808,178.24,178.23,26.0]
[1747954926844,0.10260808,178.24,178.23,44.64964886]
[1747954927520,0.10260808,178.24,178.23,50.54469971]
[1747954927842,0.10260808,178.24,178.23,84.16469971]
[1747954930828,0.10260808,178.24,178.23,50.54469971]
[1747954931030,0.10260808,178.24,178.23,85.66469971]
[1747954931213,0.10260808,178.24,178.23,79.76964886]
[1747954932637,19.62782307,178.32,178.24,18.64964886]
[1747954933224,0.10422301,178.25,178.24,18.64964886]
[1747954936150,0.10422301,178.25,178.24,24.40222335]
[1747954940958,0.10422301,178.25,178.24,24.54438492]
[1747954942034,0.10105875,178.26,178.25,0.14216157]
[1747954942855,0.10105875,178.26,178.25,24.4019086]
[1747954946041,0.10105875,178.26,178.25,50.4019086]
[1747954946244,0.11110762,178.28,178.27,0.14216157]
[1747954947050,0.11110762,178.28,178.27,44.79181043]
[1747954947270,0.11110762,178.28,178.27,50.40127921]
[1747954948779,0.11110762,178.28,178.27,44.79181043]
[1747954952571,5.72800772,178.31,178.27,44.79181043]
[1747954952572,5.60824014,178.31,178.27,44.79181043]
[1747954953278,0.10858,178.28,178.27,44.79181043]
[1747954955485,0.10858,178.28,178.27,50.40127921]
[1747954957284,0.11172054,178.31,178.28,18.933972]
[1747954957502,0.12174683,178.32,178.3,18.933972]
[1747954958197,0.1160225,178.33,178.3,44.933972]
[1747954959097,0.1160225,178.33,178.32,44.79181043]
[1747954959391,0.1160225,178.33,178.32,79.87181043]
[1747954961791,0.1160225,178.33,178.32,85.47970634]
[1747954961993,0.1160225,178.33,178.32,79.87181043]
[1747954962521,0.1160225,178.33,178.32,85.47970634]
[1747954969332,0.1160225,178.33,178.32,79.72964886]
[1747954969731,0.1160225,178.33,178.32,44.64964886]
[1747954972554,5.60697546,178.35,178.32,44.64964886]
[1747954973209,0.12060051,178.33,178.32,44.64964886]
[1747954974616,0.12060051,178.33,178.3,18.79181043]
[1747954974820,0.12060051,178.33,178.32,44.64964886]
[1747954976415,0.12060051,178.33,178.32,18.64964886]
[1747954981839,0.12060051,178.33,178.32,50.39970634]
[1747954982046,0.12060051,178.33,178.32,50.54186791]
[1747954985157,0.12084256,178.34,178.33,18.79181043]
[1747954985363,0.12084256,178.34,178.33,19.35235009]
[1747954985929,0.11569406,178.35,178.33,19.35235009]
[1747954986135,0.11569406,178.35,178.34,52.39181043]
[1747954986658,0.11569406,178.35,178.34,57.99907744]
[1747954987861,0.11569406,178.35,178.34,52.39181043]
[1747954988758,0.11569406,178.35,178.34,18.64964886]
[1747954988936,0.11569406,178.35,178.34,44.64964886]
[1747954989950,0.11569406,178.35,178.34,18.64964886]
[1747954990256,0.11569406,178.35,178.34,18.933972]
[1747954990756,0.11569406,178.35,178.34,24.54123901]
[1747954991256,0.11569406,178.35,178.34,18.79181043]
[1747954991836,0.11569406,178.35,178.34,24.54123901]
[1747954992369,0.11569406,178.35,178.34,18.933972]
[1747954992565,5.6057753,178.39,178.37,18.64964886]
[1747954993566,5.60538116,178.4,178.37,18.64964886]
[1747954994375,46.24134067,178.53,178.39,18.64964886]
[1747954994376,136.0,178.45,178.39,18.64964886]
[1747954994565,5.60381059,178.45,178.39,18.64964886]
[1747954994747,5.60381059,178.45,178.4,0.14216157]
[1747954995073,5.60381059,178.45,178.42,26.0]
[1747954996161,7.11927301,178.46,178.42,26.0]
[1747954996770,7.11927301,178.46,178.43,18.64964886]
[1747954997455,7.11927301,178.46,178.42,26.0]
[1747955002576,5.60357301,178.46,178.43,18.64964886]
[1747955003262,12.25750933,178.47,178.43,18.64964886]
[1747955004371,5.60286866,178.48,178.43,18.64964886]
[1747955005180,19.61004033,178.48,178.43,18.64964886]
[1747955007886,5.60286866,178.48,178.43,18.64964886]
[1747955012591,19.61004033,178.48,178.43,18.64964886]
[1747955013589,28.71914867,178.48,178.42,26.0]
[1747955013774,19.61004033,178.48,178.42,26.0]
[1747955013976,28.71914867,178.48,178.42,26.0]
[1747955015290,28.71914867,178.48,178.4,26.0]
[1747955015819,9.10910834,178.47,178.39,35.06]
[1747955016699,9.10910834,178.45,178.39,35.06]
[1747955016905,7.16392463,178.44,178.36,44.64964886]
[1747955017281,7.16392463,178.44,178.37,0.14216157]
[1747955017590,7.16392463,178.44,178.38,26.0]
[1747955022418,21.17423621,178.44,178.38,26.0]
[1747955025711,19.61443621,178.44,178.38,26.0]
[1747955030519,19.61443621,178.44,178.36,18.64964886]
[1747955033327,10.74100834,178.42,178.35,35.04]
[1747955034518,19.61773443,178.41,178.35,35.04]
[1747955036724,56.75217767,178.41,178.35,35.04]
[1747955036916,56.75217767,178.41,178.31,26.0]
[1747955039413,47.64306933,178.41,178.31,26.0]
[1747955040637,56.75217767,178.41,178.31,26.0]
[1747955041023,28.72684277,178.41,178.32,18.64964886]
[1747955041216,19.61773443,178.41,178.33,26.0]
[1747955041819,28.72684277,178.41,178.33,26.0]
[1747955042340,9.10910834,178.36,178.26,41.5622]
[1747955042638,9.10910834,178.36,178.22,209.64]
[1747955042639,9.10910834,178.32,178.23,1.5667]
[1747955042847,19.62873647,178.31,178.23,1.5667]
[1747955043045,28.73784481,178.31,178.23,1.5667]
[1747955043219,28.73784481,178.31,178.23,27.5667]
[1747955044322,19.62873647,178.31,178.23,33.17737991]
[1747955045734,14.02052605,178.31,178.23,27.5667]
[1747955046619,14.02052605,178.31,178.23,33.1774114]
[1747955046847,14.26175811,178.32,178.24,18.64964886]
[1747955047231,33.88829318,178.33,178.24,18.64964886]
[1747955047750,33.88829318,178.33,178.24,24.25986914]
[1747955048054,5.60758145,178.33,178.27,26.0]
[1747955048440,5.60758145,178.33,178.28,18.64964886]
[1747955048951,15.66264504,178.36,178.28,18.64964886]
[1747955049531,33.88609228,178.35,178.27,26.0]
[1747955050056,33.88609228,178.35,178.26,18.64964886]
[1747955050057,14.26175811,178.33,178.24,44.79181043]
[1747955050733,169.88609228,178.35,178.25,0.14216157]
[1747955051050,155.62433417,178.35,178.25,0.14216157]
[1747955051235,169.88609228,178.35,178.25,0.14216157]
[1747955051551,155.62433417,178.35,178.25,0.14216157]
[1747955051720,169.88609228,178.35,178.26,18.64964886]
[1747955051924,14.26175811,178.34,178.24,26.0]
[1747955052155,14.26175811,178.34,178.25,18.79181043]
[1747955052451,169.88609228,178.35,178.25,18.79181043]
[1747955055743,14.26175811,178.34,178.24,26.0]
[1747955055930,19.62653507,178.33,178.24,26.0]
[1747955057553,19.62653507,178.33,178.25,18.933972]
[1747955059240,14.01895362,178.33,178.25,24.54397398]
[1747955060165,14.01895362,178.33,178.25,18.933972]
[1747955060465,5.60726701,178.34,178.25,24.54391988]
[1747955063975,19.62543455,178.34,178.25,24.54391988]
[1747955065674,19.62543455,178.34,178.25,18.79181043]
[1747955065973,33.88719266,178.34,178.25,18.79181043]
[1747955066161,33.88719266,178.34,178.25,18.64964886]
[1747955067683,28.75161497,178.34,178.25,18.64964886]
[1747955068574,9.12618042,178.33,178.25,18.64964886]
[1747955068777,5.60726701,178.34,178.29,0.14216157]
[1747955069557,5.60663825,178.36,178.29,0.14216157]
[1747955069763,5.60663825,178.36,178.3,26.0]
[1747955070066,5.60600964,178.38,178.3,5.60833876]
[1747955071204,5.60600964,178.38,178.31,24.40000632]
[1747955073885,31.60538116,178.4,178.33,18.79181043]
[1747955074866,31.60538116,178.4,178.33,5.74952828]
[1747955074867,5.60538116,178.4,178.33,5.74952828]
[1747955075473,5.60538116,178.4,178.33,0.14216157]
[1747955076675,5.60538116,178.4,178.33,18.79181043]
[1747955076879,14.01293788,178.41,178.33,20.42431043]
[1747955077290,14.01293788,178.41,178.33,26.03182553]
[1747955077704,14.01293788,178.41,178.33,59.65182553]
[1747955079194,14.01293788,178.41,178.33,54.04431043]
[1747955080471,14.01293788,178.41,178.33,59.65179756]
[1747955080969,14.01293788,178.41,178.33,54.04431043]
[1747955081171,14.01293788,178.41,178.34,0.14216157]
[1747955081378,14.01293788,178.41,178.33,46.28214886]
[1747955081578,28.26375347,178.41,178.33,44.64964886]
[1747955082682,33.86882045,178.41,178.33,26.0]
[1747955083299,19.61800486,178.41,178.33,26.0]
[1747955084296,61.89415535,178.41,178.33,26.0]
[1747955084498,14.25081559,178.4,178.32,26.0]
[1747955084680,14.25081559,178.39,178.32,26.0]
[1747955084882,19.62103374,178.38,178.32,26.0]
[1747955086228,19.62103374,178.38,178.3,26.14216157]
[1747955086505,47.65108195,178.38,178.3,26.0]
[1747955087519,47.65108195,178.38,178.32,26.0]
[1747955087893,19.62103374,178.38,178.32,26.0]
[1747955088085,19.62103374,178.38,178.33,18.64964886]
[1747955088781,19.62103374,178.38,178.32,26.0]
[1747955089684,14.0150241,178.38,178.32,26.0]